[Event "Slovakia Open 2022"]
[Site "Bratislava"]
[Date "2022.10.02"]
[Round "9.7"]
[White "Roshka, Yevgeniy"]
[Black "Babula, Vlastimil"]
[Result "1-0"]
[ECO "D43"]
[WhiteElo "2497"]
[BlackElo "2574"]
[Annotator "TA"]
[PlyCount "73"]
[EventDate "2022.09.30"]
[EventCountry "SVK"]
[SourceTitle "playchess.com"]
[Source "ChessBase"]
[SourceQuality "1"]
[TimeControl "2700+10"]

{[%evp 14,73,12,8,37,0,-12,-16,0,0,0,0,0,-72,0,0,0,0,41,7,85,3,14,0,71,66,220,227,241,225,301,185,186,198,373,268,276,210,268,264,260,260,322,277,406,398,395,400,387,394,384,381,347,251,262,247,251,251,535,526,29971,29950]} 1. d4 {[%emt 0:00:06]} d5 {[%emt 0:00:10]} 2. c4 {[%emt 0:00:04]} c6 {[%emt 0:00:01]} 3. Nf3 {[%emt 0:00:08]} Nf6 {[%emt 0:00:03]} 4. Qb3 {[%emt 0:01:03]} e6 {[%emt 0:00:10]} 5. g3 {[%emt 0:00:17]} Nbd7 {[%emt 0:01:28]} 6. Bg2 {[%emt 0:00:06]} Bd6 {[%emt 0:00:01]} 7. O-O {[%emt 0:00:21]} O-O {[%emt 0:00:12]} 8. Nc3 {[%emt 0:01:29]} b6 {[%emt 0:00:22] D43: Semi-Slav: 5 Bg5 h6.} 9. Bf4 {[%emt 0:01:23]} (9. e4 $14 {deserves consideration.} dxe4 10. Ng5) 9... Bxf4 $11 {[%emt 0:00:20]} 10. gxf4 {[%emt 0:00:03]} Bb7 {[%emt 0:06:40] [#] The position is equal.} 11. Rac1 $146 {[%emt 0:00:17]} ({Predecessor:} 11. cxd5 cxd5 12. Rfc1 Qe7 13. a4 Rfc8 14. a5 Ba6 15. Ne5 Rab8 16. axb6 Rxb6 17. Qa4 Nxe5 18. fxe5 {1-0 (65) Dolezal,R (2416)-Mojzis,J (2182) Tabor 2010}) 11... c5 {[%emt 0:01:16]} 12. Rfd1 {[%emt 0:00:30]} Qe7 {[%emt 0:01:14]} 13. Ne5 {[%emt 0:07:44]} (13. cxd5 $11 Nxd5 14. Nxd5 Bxd5 15. Qe3) 13... dxc4 {[%emt 0:01:06]} ({Better is} 13... Nxe5 $17 14. fxe5 Nh5) 14. Qxc4 {[%emt 0:00:04]} Bxg2 {[%emt 0:00:05]} 15. Kxg2 {[%emt 0:00:02]} cxd4 {[%emt 0:02:23]} 16. Nc6 {[%emt 0:01:00]} (16. Rxd4 Nxe5 17. fxe5 Nd7 $15) 16... Qc5 {[%emt 0:01:06] [#]} (16... Qe8 $1 $11 17. Rxd4 (17. Qxd4 Nb8 $11) 17... a5) 17. Rxd4 {[%emt 0:00:08]} (17. Qxc5 $1 $16 Nxc5 18. Rxd4) 17... Qh5 {[%emt 0:00:05]} 18. Qb5 {[%emt 0:03:18] Against e5. Active counter play!} Qg4+ {[%emt 0:04:29]} (18... Nc5 $11 {keeps the balance.}) 19. Kh1 $16 {[%emt 0:00:04]} Nc5 $2 {[%emt 0:02:15] Loses the game.} (19... Qh3 $14 20. Rg1 (20. Ne7+ Kh8 $16) 20... Kh8) 20. b4 $18 {[%emt 0:01:57]} Qh4 {[%emt 0:00:15][%cal Of6g4] [#] ( -> ...Ng4!)} 21. f3 {[%emt 0:00:32] Against Ng4} (21. bxc5 {is a self mate.} Ng4) (21. Ne7+ Kh8 22. f3 (22. bxc5 Ng4 23. Kg2 Qxh2+ 24. Kf3 Qxf2+ 25. Kxg4 Qg2+ 26. Kh4 f5) 22... Nce4 23. Nxe4 (23. fxe4 Ng4) 23... Nxe4 $11) 21... Nb7 {[%emt 0:02:53]} 22. Qg5 {[%emt 0:00:13]} Qxg5 {[%emt 0:01:37]} 23. fxg5 {[%emt 0:00:01]} Nh5 {[%emt 0:00:03]} (23... Nd5 {was worth a try.} 24. Nxd5 exd5 25. Rxd5 Nd8) 24. Rd7 {[%emt 0:00:09]} Nd8 {[%emt 0:00:02]} 25. Ne7+ {[%emt 0:00:19]} ({Much less strong is} 25. Nxa7 $6 f6 $16) 25... Kh8 {[%emt 0:00:02]} 26. Nb5 {[%emt 0:00:03][%cal Bc3b5,Bb5a7,Ba7c6,Bc6e5,Be5f7][%mdl 32]} Nf4 {[%emt 0:00:26]} 27. Rxa7 {[%emt 0:02:06]} Rxa7 {[%emt 0:00:28]} 28. Nxa7 {[%emt 0:00:03]} Nxe2 {[%emt 0:00:02]} (28... g6 $142 29. a4 Kg7) 29. Rc8 {[%emt 0:00:29] Hoping for Nac6.} e5 {[%emt 0:00:34]} 30. Nac6 {[%emt 0:00:04]} Ne6 {[%emt 0:00:02]} 31. Nxe5 {[%emt 0:00:04][%cal Re5f7]} g6 {[%emt 0:01:19]} 32. Rxf8+ {[%emt 0:00:02]} Nxf8 {[%emt 0:00:01]} 33. Nxf7+ {[%emt 0:00:02]} Kg7 {[%emt 0:00:01]} 34. Ne5 {[%emt 0:00:01]} Ne6 {[%emt 0:00:38]} 35. a4 {[%emt 0:00:45][%cal Ba2a4,Ba4a5][%mdl 32]} Nc1 $2 {[%emt 0:02:46]} (35... Nc3 36. a5 bxa5) 36. Nd5 {[%emt 0:00:32]} Nxg5 {[%emt 0:00:33]} 37. a5 {[%emt 0:00:31] Weighted Error Value: White=0.22 (precise) /Black=0.65} 1-0

[Event "Slovakia Open 2022"]
[Site "Bratislava"]
[Date "2022.10.02"]
[Round "9.8"]
[White "Pasti, Aron"]
[Black "Kukelko, Alexey"]
[Result "1/2-1/2"]
[ECO "B66"]
[WhiteElo "2350"]
[BlackElo "2280"]
[Annotator "TA"]
[PlyCount "65"]
[EventDate "2022.09.30"]
[EventCountry "SVK"]
[SourceTitle "playchess.com"]
[Source "ChessBase"]
[SourceQuality "1"]
[TimeControl "2700+10"]

{[%evp 18,65,0,-13,53,46,57,58,44,60,55,39,29,41,44,0,34,26,22,17,36,33,29,18,27,17,36,22,25,0,0,0,0,0,0,0,0,0,0,0,0,0,0,0,0,0,0,0,0,0]} 1. e4 {[%emt 0:00:11]} c5 {[%emt 0:00:01]} 2. Nf3 {[%emt 0:00:02]} d6 {[%emt 0:00:10]} 3. d4 {[%emt 0:00:01]} Nf6 {[%emt 0:00:00]} 4. Nc3 {[%emt 0:00:01]} cxd4 {[%emt 0:00:00]} 5. Nxd4 {[%emt 0:00:01]} Nc6 {[%emt 0:00:00]} 6. Bg5 {[%emt 0:00:04]} e6 {[%emt 0:00:04]} 7. Qd2 {[%emt 0:00:01]} a6 {[%emt 0:00:00]} 8. O-O-O {[%emt 0:00:03]} h6 {[%emt 0:00:01]} 9. Bxf6 {[%emt 0:04:07]} Qxf6 {[%emt 0:01:07]} 10. Nb3 {[%emt 0:01:15] 10.Nxc6 is more fashionable.} g5 {[%emt 0:03:23] B66: Sicilian: Richter-Rauzer: 7...a6 8 0-0-0 h6.} (10... b5 $11) 11. Kb1 $14 {[%emt 0:00:29]} Bd7 {[%emt 0:03:06] [#]} 12. g3 $146 {[%emt 0:00:11]} ({Predecessor:} 12. h4 Rg8 13. hxg5 hxg5 14. Nc5 Rb8 15. Nxd7 Kxd7 16. Rh3 b5 17. Rd3 Qe5 18. Qe3 Kc7 19. g3 g4 20. Ne2 Kb7 21. f4 gxf3 22. Qxf3 Be7 23. c3 Qg7 {½-½ (23) Stanojoski,Z (2514)-Danchevski,O (2441) Struga 2008}) 12... g4 {[%emt 0:05:13] White is slightly better.} 13. h3 {[%emt 0:03:55]} h5 {[%emt 0:01:19]} 14. hxg4 {[%emt 0:02:13]} hxg4 {[%emt 0:00:10]} 15. Rxh8 {[%emt 0:00:10]} Qxh8 {[%emt 0:00:02]} 16. Nc5 {[%emt 0:03:17]} Bc8 {[%emt 0:02:58]} (16... O-O-O $5 {[%cal Rd6c5]} 17. Nxd7 Kxd7 $11) 17. N5a4 {[%emt 0:01:45] aiming for Nb6.} b5 {[%emt 0:01:59] [#] And now ...Rb8 would win.} 18. Nb6 {[%emt 0:00:05]} Rb8 {[%emt 0:00:01]} 19. Nxc8 {[%emt 0:00:01]} Rxc8 {[%emt 0:00:01]} 20. a4 {[%emt 0:00:01]} b4 {[%emt 0:06:05]} 21. Na2 {[%emt 0:00:14]} a5 {[%emt 0:02:28]} 22. Ba6 {[%emt 0:00:20]} Rc7 {[%emt 0:00:35]} 23. c3 {[%emt 0:00:32][%cal Rc3b4]} ({Don't take} 23. Bb5 Qe5 $14) 23... Qe5 {[%emt 0:01:28] The position is equal.} 24. cxb4 {[%emt 0:00:03]} axb4 {[%emt 0:02:00]} 25. Bb5 {[%emt 0:00:01]} Qxe4+ {[%emt 0:00:23]} 26. Ka1 {[%emt 0:00:11]} Kd8 $1 {[%emt 0:01:53]} 27. Qg5+ {[%emt 0:06:05]} Kc8 {[%emt 0:00:01]} 28. Qg8 {[%emt 0:02:37]} Na5 {[%emt 0:00:11][%cal Bc6a5,Ba5b3,Bb3c1][%mdl 32]} 29. Qxf8+ {[%emt 0:00:28]} Kb7 {[%emt 0:00:01][%cal Ra5b3]} 30. Nc1 {[%emt 0:07:30] Against Nb3+} Rxc1+ {[%emt 0:02:49][%mdl 64] [#] Remove Defender, Decoy} 31. Rxc1 {[%emt 0:00:04] Intending Qc8+ and mate. The board is on fire.} Nb3+ {[%emt 0:00:01]} 32. Ka2 {[%emt 0:00:01] White threatens Qc8+ and mate.} Nxc1+ {[%emt 0:00:02]} 33. Ka1 {[%emt 0:00:10] Weighted Error Value: White=0.05 (flawless) /Black=0.09 (flawless)} 1/2-1/2

[Event "Slovakia Open 2022"]
[Site "Bratislava"]
[Date "2022.10.02"]
[Round "9.9"]
[White "Slovak, Kilian"]
[Black "Nemsak, Denis"]
[Result "1/2-1/2"]
[ECO "B01"]
[WhiteElo "2278"]
[BlackElo "2012"]
[Annotator "TA"]
[PlyCount "68"]
[EventDate "2022.09.30"]
[EventCountry "SVK"]
[SourceTitle "playchess.com"]
[Source "ChessBase"]
[SourceQuality "1"]
[TimeControl "2700+10"]

{[%evp 14,68,50,49,58,50,55,51,44,48,64,59,68,66,57,66,93,73,76,53,69,72,107,62,66,58,66,91,99,0,0,0,18,8,74,0,0,0,0,-44,-44,-44,-45,-116,-94,-172,0,-120,-122,-152,-137,-208,-197,-257,-222,-297,-304]} 1. e4 {[%emt 0:00:04]} d5 {[%emt 0:00:23]} 2. exd5 {[%emt 0:00:02]} Nf6 {[%emt 0:00:02][%cal Bg8f6,Bf6d5,Bd5b6][%mdl 32]} 3. d4 {[%emt 0:00:01]} Nxd5 {[%emt 0:00:02]} 4. c4 {[%emt 0:00:01]} Nb6 {[%emt 0:00:02]} 5. Nf3 {[%emt 0:00:02]} g6 {[%emt 0:00:02]} 6. Nc3 {[%emt 0:00:08]} Bg7 {[%emt 0:00:03]} 7. c5 {[%emt 0:00:01]} Nd5 {[%emt 0:00:02]} 8. Bc4 {[%emt 0:00:02]} Nxc3 {[%emt 0:00:05] B01: Scandinavian Defence.} 9. bxc3 {[%emt 0:00:01]} O-O {[%emt 0:00:04]} 10. Bg5 {[%emt 0:00:42][%cal Bc1g5,Bg5h4,Bh4g3][%mdl 32]} Nc6 {[%emt 0:00:20] White is slightly better.} 11. O-O {[%emt 0:00:29]} h6 {[%emt 0:00:03]} 12. Bh4 {[%emt 0:00:21]} g5 {[%emt 0:00:03]} 13. Bg3 {[%emt 0:02:15]} Bg4 {[%emt 0:00:08][%cal Oe7e5] [#]} 14. Qd3 $146 {[%emt 0:00:26]} ({Predecessor:} 14. h3 Bh5 15. Re1 b6 16. Bd3 Rc8 17. Be4 Na5 18. Qc2 e6 19. Ne5 f5 20. Bd3 bxc5 {1-0 (87) Varadi,V (2432)-Paschall,W (2351) Hungary 2009}) 14... Na5 {[%emt 0:04:34]} 15. Bb5 {[%emt 0:00:09]} e6 {[%emt 0:00:08]} 16. Ne5 {[%emt 0:00:39]} Bf5 {[%emt 0:00:04]} 17. Qe2 {[%emt 0:00:04]} b6 {[%emt 0:00:25][%cal Oa7a6]} 18. cxb6 {[%emt 0:01:40] White is more active.} axb6 {[%emt 0:00:10]} 19. f4 {[%emt 0:00:31]} Qd5 {[%emt 0:09:51]} 20. fxg5 {[%emt 0:00:18]} hxg5 {[%emt 0:00:08]} 21. Bd3 {[%emt 0:01:52]} ({Better is} 21. Rae1 $16) 21... Bxd3 $1 $11 {[%emt 0:02:14]} 22. Nxd3 {[%emt 0:00:04]} c5 {[%emt 0:04:07]} 23. dxc5 {[%emt 0:00:02]} bxc5 {[%emt 0:00:09]} (23... Bxc3 $11 24. Rac1 Bd4+ 25. Bf2 bxc5) 24. Rad1 {[%emt 0:00:20]} (24. Ne5 $1 $16 f5 25. Rad1) 24... Bxc3 {[%emt 0:05:21]} 25. Ne5 {[%emt 0:00:17]} Bd4+ {[%emt 0:00:03]} 26. Kh1 {[%emt 0:00:01]} (26. Rxd4 $5 Qxd4+ 27. Bf2 $11) 26... Nc6 {[%emt 0:02:26]} 27. Nxc6 {[%emt 0:02:42]} Qxc6 {[%emt 0:00:07]} 28. h4 {[%emt 0:05:23]} (28. Be5 $15 Qa6 29. Qe4) 28... Ra3 {[%emt 0:09:29]} 29. Qg4 {[%emt 0:00:29] [#]} (29. Bh2 $17) 29... Qd5 $2 {[%emt 0:01:14]} ({Not} 29... Rxa2 30. Qxg5+ Kh7 31. Rf3 $11 (31. Bf4 e5 $15)) (29... f6 $1 $19 {White must now prevent ...Rf7.} 30. Rd2 Ra7) 30. Rd2 {[%emt 0:02:21]} (30. Bd6 $1 $11) 30... Kg7 $40 {[%emt 0:02:01][%mdl 128] White is in trouble.} 31. Re2 {[%emt 0:02:48][%cal Og3e5] [#]} Re3 {[%emt 0:03:45] Inhibits Be5+. aiming for ...Rxe2.} 32. Rxe3 {[%emt 0:06:05]} (32. Rfe1 $17 Rxe2 33. Rxe2) 32... Bxe3 $19 {[%emt 0:00:01]} 33. Kh2 {[%emt 0:00:50]} (33. Qh5 {was necessary.}) 33... Ra8 {[%emt 0:01:43] Threatens to win with ...f5.} 34. Be1 {[%emt 0:00:51]} Rxa2 {[%emt 0:00:35][%mdl 32768] Weighted Error Value: White=0.34/Black=0.24 (precise) . An unexpected result.} 1/2-1/2

[Event "Slovakia Open 2022"]
[Site "Bratislava"]
[Date "2022.10.02"]
[Round "9.10"]
[White "Nytra, Ondrej"]
[Black "Kostolansky, Sebastian Lukas"]
[Result "0-1"]
[ECO "B47"]
[WhiteElo "2233"]
[BlackElo "2398"]
[Annotator "TA"]
[PlyCount "75"]
[EventDate "2022.09.30"]
[EventCountry "SVK"]
[SourceTitle "playchess.com"]
[Source "ChessBase"]
[SourceQuality "1"]
[TimeControl "2700+10"]

{[%evp 13,75,29,23,0,-9,-12,0,-13,0,-27,21,-15,-16,-12,0,0,0,-7,0,0,10,15,0,6,9,35,37,0,95,71,96,53,54,73,245,-594,-604,-595,-597,-579,-564,-634,-551,-583,-554,-536,-513,-501,-218,-214,-210,-209,-133,-138,-130,-116,-111,-377,0,-133,0,-178,0,0]} 1. e4 {[%emt 0:00:05]} c5 {[%emt 0:00:02]} 2. Nf3 {[%emt 0:00:02]} e6 {[%emt 0:00:01]} 3. d4 {[%emt 0:00:01]} cxd4 {[%emt 0:00:02]} 4. Nxd4 {[%emt 0:00:03]} Nc6 {[%emt 0:00:02]} 5. Nc3 {[%emt 0:00:13]} Qc7 {[%emt 0:00:13]} 6. Be2 {[%emt 0:01:15]} a6 {[%emt 0:01:15]} 7. O-O {[%emt 0:00:05]} Nf6 {[%emt 0:00:46]} 8. Re1 {[%emt 0:02:03] B47: Sicilian: Taimanov: 5 Nc3 Qc7 6 f4, 6 g3 and 6 Be2.} Nxd4 {[%emt 0:08:27]} 9. Qxd4 {[%emt 0:00:06] Hoping for e5.} Bd6 {[%emt 0:00:05] Inhibits e5.} 10. g3 {[%emt 0:00:57] [#]} Be5 $146 {[%emt 0:00:21]} ({Predecessor:} 10... b5 11. Bf3 Be5 12. Qd3 Bb7 13. Bg5 Rc8 14. Bxf6 gxf6 15. Rad1 b4 16. Ne2 Bxb2 {0-1 (44) Djuric,S (2462)-Miladinovic,I (2571) Subotica 2008}) 11. Qd3 {[%emt 0:00:19]} O-O {[%emt 0:01:00]} (11... b5 $142) 12. f4 {[%emt 0:04:56]} Bxc3 {[%emt 0:08:49]} 13. bxc3 {[%emt 0:00:02]} d5 {[%emt 0:00:10]} 14. e5 {[%emt 0:00:23]} Ne4 {[%emt 0:00:28]} 15. c4 $1 {[%emt 0:00:33]} Rd8 {[%emt 0:10:20]} 16. Bf3 {[%emt 0:07:02]} b5 {[%emt 0:06:24]} 17. cxd5 {[%emt 0:01:50]} ({Much worse is} 17. cxb5 axb5 18. Be3 (18. Bxe4 dxe4 19. Qxb5 Ba6 $15) 18... Bd7 $15) (17. Bxe4 dxe4 18. Qe2 Bb7 $15) 17... exd5 {[%emt 0:00:02]} 18. Bb2 {[%emt 0:00:03]} Bb7 {[%emt 0:00:56]} 19. Bd4 {[%emt 0:04:20]} Rac8 {[%emt 0:00:50][%cal Ba8c8,Bc8c4,Bc4d4,Bd4d1][%mdl 32]} 20. Re2 {[%emt 0:00:38]} Qa5 {[%emt 0:02:33]} (20... Qd7 $11 {keeps the balance.}) 21. f5 $1 $16 {[%emt 0:01:42][%cal Bf4f5,Bf5f6][%mdl 32]} Rc4 {[%emt 0:00:14]} 22. f6 {[%emt 0:00:16] aiming for Qe3.} Qb4 $1 {[%emt 0:01:33]} 23. a3 {[%emt 0:02:35]} Qa4 {[%emt 0:01:03]} (23... Qf8 $16 {keeps fighting.}) 24. Bxe4 $4 {[%emt 0:01:06][%mdl 8192]} (24. c3 $1 $18 {is the narrow road to win.}) 24... dxe4 $19 {[%emt 0:01:11][%cal Bd5e4,Be4e3][%mdl 32]} 25. Qe3 {[%emt 0:00:19][%cal Oe3g5]} Rcxd4 {[%emt 0:00:02]} 26. Rae1 {[%emt 0:06:43] White threatens Qg5 and mate.} Rd1 {[%emt 0:00:58]} 27. Qg5 {[%emt 0:00:19][%csl Gf6][%cal Rg5g7]} Qd4+ {[%emt 0:00:02]} 28. Kg2 {[%emt 0:01:16][%csl Gf6][%cal Rg5g7]} e3+ $1 {[%emt 0:00:07]} (28... g6 29. Qh6 e3+ 30. Kh3 Bc8+ 31. Kg2 Bb7+ 32. Kh3 Bc8+ 33. Kg2 Bb7+ $11) 29. Kh3 {[%emt 0:00:09][%csl Gf6][%cal Rg5g7] [#]} Bc8+ $1 {[%emt 0:00:31]} 30. g4 {[%emt 0:00:22] [#]} Qxg4+ $1 {[%emt 0:00:59]} 31. Qxg4 {[%emt 0:00:04]} Bxg4+ {[%emt 0:00:01]} 32. Kxg4 {[%emt 0:00:02]} gxf6 {[%emt 0:00:17]} 33. Rxd1 {[%emt 0:00:29]} Rxd1 {[%emt 0:00:01]} 34. exf6 {[%emt 0:00:06] KR-KR} Rd6 {[%emt 0:00:28] White must now prevent ...Re6. Black is more active.} 35. Kg5 $2 {[%emt 0:01:15][%mdl 8192] [#]} (35. Rxe3 $17 Rxf6 36. a4) 35... Rd1 $2 {[%emt 0:00:29]} (35... Re6 $1 $19 {Strongly threatening ...Kf8.} 36. h3 Kf8) 36. h4 {[%emt 0:00:03]} (36. Rxe3 $11 Rg1+ 37. Kh4) 36... Kf8 {[%emt 0:00:10]} (36... Rg1+ $17 37. Kf4 Rf1+ 38. Kg5 Rf3) 37. h5 $2 {[%emt 0:00:10]} (37. Rxe3 $11 {and White stays safe.} Rd5+ 38. Kf4) 37... h6+ $2 {[%emt 0:00:10]} ({Better is} 37... Rd5+ $19 38. Kf4 Rd6) 38. Kxh6 {[%emt 0:04:41][%mdl 32768] Weighted Error Value: White=0.48/Black=0.48. Sensor Board Error (Ke4/e5)?} 0-1

[Event "Slovakia Open 2022"]
[Site "Bratislava"]
[Date "2022.10.02"]
[Round "9.11"]
[White "Novosadova, Kristyna"]
[Black "Rosol, Philip"]
[Result "1/2-1/2"]
[ECO "B48"]
[WhiteElo "2151"]
[BlackElo "1885"]
[Annotator "TA"]
[PlyCount "145"]
[EventDate "2022.09.30"]
[EventCountry "SVK"]
[SourceTitle "playchess.com"]
[Source "ChessBase"]
[SourceQuality "1"]
[TimeControl "2700+10"]

{[%evp 11,145,22,54,25,28,12,66,-36,-36,-32,-34,-19,7,-46,-56,-47,-26,-29,-21,-22,-12,-24,-27,-45,-38,-37,-27,-53,-21,-39,-18,-73,-33,-33,-39,-62,-50,-61,-68,-79,-79,-78,-74,-78,-86,-83,-81,-84,-87,-81,-79,-72,-51,-106,-106,-105,-105,-106,-106,-191,-130,-143,-64,-64,-41,-76,-80,-87,-84,-84,-79,-104,-104,-107,-107,-107,-107,-175,-59,-58,-52,-260,-275,-258,-285,-290,-291,-311,-221,-227,-237,-243,-238,-237,-231,-223,-217,-469,-417,-417,-411,-789,-701,-5583,-5583,-5173,-5046,-4683,-4631,-4638,-4122,-4631,-4631,-1639,0,0,0,0,0,0,0,0,0,0,0,0,0,0,0,0,0,0,0,0,0,0]} 1. e4 {[%emt 0:00:06]} c5 {[%emt 0:00:03]} 2. Nf3 {[%emt 0:00:02]} e6 {[%emt 0:00:02]} 3. d4 {[%emt 0:00:02]} cxd4 {[%emt 0:00:03]} 4. Nxd4 {[%emt 0:00:02]} Nc6 {[%emt 0:00:02]} 5. Nc3 {[%emt 0:00:05]} Qc7 {[%emt 0:00:02]} 6. Be3 {[%emt 0:00:10]} a6 {[%emt 0:00:03]} 7. Qf3 {[%emt 0:00:22] B48: Sicilian: Taimanov: 5 Nc3 Qc7 6 Be3 a6 without Be2.} Nf6 {[%emt 0:01:32][%cal Of8a3,Bg8f6,Bf6g4,Bg4e3][%mdl 32]} 8. O-O-O {[%emt 0:01:07]} Be7 {[%emt 0:01:52]} (8... Nxd4 $11 9. Bxd4 e5) 9. Qg3 {[%emt 0:03:22] White is more active.} ({White should try} 9. Kb1 $14) 9... Qxg3 $15 {[%emt 0:01:01]} 10. hxg3 {[%emt 0:00:02]} Ng4 {[%emt 0:02:54]} 11. Nxc6 {[%emt 0:02:58]} bxc6 {[%emt 0:05:23] [#]} 12. Re1 $146 {[%emt 0:02:28]} (12. Bd4 $11) ({Predecessor:} 12. Bb6 Rb8 13. Ba7 Rb7 14. Be2 Rxa7 15. Bxg4 d6 16. Rh5 g6 17. Ra5 Bd8 18. Ra4 {0-1 (51) Fawzy,A (2431)-Sanchez,S (2424) Batumi 2018}) 12... Nxe3 {[%emt 0:02:42]} 13. Rxe3 {[%emt 0:00:05]} Bc5 {[%emt 0:01:52]} (13... d5 $5 {[%cal Rd5d4]} 14. Re1 Bb7 $15) 14. Re2 {[%emt 0:02:04]} Bd4 {[%emt 0:05:08]} 15. Na4 {[%emt 0:00:14]} d5 {[%emt 0:01:25]} 16. c3 {[%emt 0:00:30][%cal Bc2c3,Bc3c4][%mdl 32]} Ba7 {[%emt 0:00:28]} 17. e5 {[%emt 0:00:13]} c5 {[%emt 0:01:14]} 18. c4 {[%emt 0:00:35]} Bb7 {[%emt 0:03:50]} 19. Nc3 {[%emt 0:02:38]} O-O-O {[%emt 0:01:02]} 20. f4 {[%emt 0:01:12]} h6 {[%emt 0:03:30]} ({Don't play} 20... dxc4 21. Ne4 $14) 21. Rd2 {[%emt 0:01:12]} (21. cxd5 $11 exd5 22. b3) 21... Kc7 {[%emt 0:01:54]} (21... d4 $5 {[%cal Rd4c3]} 22. Na4 Kd7 $17) 22. Bd3 {[%emt 0:01:07]} dxc4 {[%emt 0:01:35]} 23. Be4 {[%emt 0:00:17]} Rxd2 {[%emt 0:00:56]} 24. Kxd2 {[%emt 0:00:02]} Rd8+ {[%emt 0:00:29]} 25. Kc2 {[%emt 0:00:16]} Rd4 {[%emt 0:00:57]} 26. Re1 {[%emt 0:00:36]} Bb8 {[%emt 0:00:38]} 27. Re3 {[%emt 0:02:00]} Bxe4+ {[%emt 0:00:46]} 28. Nxe4 $17 {[%emt 0:00:16][%mdl 4096] Endgame KRB-KRN} Kc6 {[%emt 0:00:05] Inhibits Nd6.} 29. Nd2 {[%emt 0:00:27]} Bc7 {[%emt 0:00:50]} 30. Nf3 {[%emt 0:00:44]} Rd8 {[%emt 0:00:43]} 31. Re4 {[%emt 0:00:09]} Kd5 {[%emt 0:00:41]} 32. Re1 {[%emt 0:00:15]} ({Better is} 32. Nd2 $15) 32... Ba5 {[%emt 0:00:31]} 33. Re3 {[%emt 0:00:03]} Kc6 {[%emt 0:00:18]} 34. g4 {[%emt 0:00:31]} g6 {[%emt 0:01:28]} 35. g5 {[%emt 0:02:41] [#]} (35. Kc1 $17) 35... hxg5 {[%emt 0:01:01]} (35... h5 $1 $19 36. Ra3 Kb6) 36. fxg5 {[%emt 0:00:02] [#]} Rd5 {[%emt 0:02:01]} (36... Rh8 $1 $17 37. Re2 Rh1) 37. Re4 $15 {[%emt 0:00:09]} Bc7 {[%emt 0:00:16]} 38. Kc3 {[%emt 0:00:35]} Kb5 {[%emt 0:00:40]} 39. a4+ {[%emt 0:00:19]} Kxa4 {[%emt 0:00:15] ...Kb5 is the strong threat.} 40. Kxc4 {[%emt 0:01:01]} Ka5 {[%emt 0:00:18]} 41. b3 {[%emt 0:03:12]} Kb6 {[%emt 0:00:17]} 42. Rf4 {[%emt 0:00:05]} Rd7 {[%emt 0:00:18]} ({Of course not} 42... Bxe5 $6 43. Rxf7 Bb2 44. Rf8 $15) 43. Rh4 {[%emt 0:01:02]} Kc6 {[%emt 0:00:39]} 44. Rh7 {[%emt 0:00:18]} (44. Rh8 $17 {is a better defense.}) 44... a5 {[%emt 0:00:15]} (44... Ba5 $19 {Hoping for ...Rb7.} 45. Rh8 Rb7 46. Rc8+ Bc7) 45. Rh8 $1 {[%emt 0:02:45]} Rd8 {[%emt 0:00:11]} 46. Rh4 {[%emt 0:00:10]} ({Only move:} 46. Rh7 $15) 46... Rb8 $19 {[%emt 0:00:15]} 47. Kc3 {[%emt 0:00:26]} Rb4 {[%emt 0:00:09] And now ...Rxh4 would win.} 48. Rh7 {[%emt 0:01:05]} Rf4 {[%emt 0:00:02]} 49. Rh1 {[%emt 0:03:08]} Rg4 {[%emt 0:00:24]} 50. Rh7 {[%emt 0:05:09]} Kd5 {[%emt 0:00:03]} 51. Rxf7 {[%emt 0:00:15]} Bxe5+ {[%emt 0:00:03]} 52. Nxe5 {[%emt 0:00:10]} Kxe5 {[%emt 0:00:03] KR-KR} 53. Ra7 {[%emt 0:00:51]} Rxg5 {[%emt 0:00:21]} 54. Kc4 $2 {[%emt 0:00:32]} (54. Rxa5 Kd6 55. Ra2) 54... Kf4 {[%emt 0:00:26]} 55. Rxa5 {[%emt 0:00:13]} Rxg2 {[%emt 0:00:09] Strongly threatening ...g5.} 56. Kb5 {[%emt 0:01:39]} (56. Ra1 $142 g5 57. Rf1+ Ke3 58. Kxc5) 56... Rg5 {[%emt 0:00:10][%cal Oc5c4] ( -> ...c4+!)} 57. Kc6 {[%emt 0:00:22]} Rd5 {[%emt 0:00:08]} 58. Ra4+ {[%emt 0:00:28]} Kf3 {[%emt 0:00:09]} 59. Rh4 {[%emt 0:00:51]} g5 {[%emt 0:00:12]} 60. Rh6 {[%emt 0:00:30]} Re5 {[%emt 0:00:06] White must now prevent ...g4.} 61. Kd6 {[%emt 0:00:04]} Re3 {[%emt 0:00:03]} 62. Kxc5 {[%emt 0:00:03]} Rxb3 $2 {[%emt 0:00:05]} (62... g4 $19 63. Kd6 g3 64. Rf6+ Ke2) 63. Rh3+ $11 {[%emt 0:00:01][%mdl 64] Skewer. The position is equal.} Kf2 {[%emt 0:00:24]} 64. Rxb3 {[%emt 0:00:03] KR-KPP} g4 {[%emt 0:00:02][%cal Bg5g4,Bg4g3,Bg3g2][%mdl 32]} 65. Kd4 {[%emt 0:00:30] Ke4 would kill now.} g3 {[%emt 0:00:10]} 66. Rb2+ {[%emt 0:00:32]} Kf3 {[%emt 0:00:08]} 67. Rb3+ {[%emt 0:00:33]} Kf2 {[%emt 0:00:15]} 68. Ke4 {[%emt 0:00:08] White wants to mate with Rb2+.} g2 {[%emt 0:00:13]} 69. Rb2+ {[%emt 0:00:02]} Kg3 $1 {[%emt 0:00:04]} 70. Rb3+ {[%emt 0:00:22]} Kf2 {[%emt 0:00:11]} 71. Rf3+ {[%emt 0:00:15]} Ke2 {[%emt 0:00:09]} 72. Rg3 {[%emt 0:00:07]} Kf2 {[%emt 0:00:10]} 73. Rg6 {[%emt 0:00:04] Black had all chances to win.  Weighted Error Value: White=0.43/Black=0.24 (precise)} 1/2-1/2